[Event "Sunway Sitges Chess Festival"]
[Date "2024.12.21"]
[White "Zheng, Harry Z"]
[Black "Velten, Paul"]
[WhiteElo "2248"]
[BlackElo "2501"]
[Round "7.16"]
[Result "0-1"]
[TimeControl "40/5400+30:1800+30"]

1. e4 {[%clk 1:30:54]} 1... c5 {[%clk 1:30:13]} 2. Nf3 {[%clk 1:31:06]} 2... d6
{[%clk 1:29:45]} 3. d4 {[%clk 1:31:16]} 3... cxd4 {[%clk 1:30:02]} 4. Nxd4
{[%clk 1:31:36]} 4... Nf6 {[%clk 1:29:54]} 5. Nc3 {[%clk 1:31:53]} 5... a6
{[%clk 1:29:43]} 6. Be3 {[%clk 1:31:55]} 6... e5 {[%clk 1:29:26]} 7. Nf3 {[%clk
1:32:01]} 7... Nc6 {[%clk 1:25:13]} 8. Bc4 {[%clk 1:30:27]} 8... Be6 {[%clk
1:23:54]} 9. Bb3 {[%clk 1:29:25]} 9... Na5 {[%clk 1:22:04]} 10. O-O {[%clk
1:22:23]} 10... Nxb3 {[%clk 1:17:26]} 11. axb3 {[%clk 1:22:39]} 11... Be7 {[%clk
1:17:34]} 12. Bg5 {[%clk 1:14:46]} 12... O-O {[%clk 1:13:16]} 13. Bxf6 {[%clk
1:14:36]} 13... Bxf6 {[%clk 1:13:38]} 14. Nd5 {[%clk 1:14:35]} 14... Be7 {[%clk
1:12:47]} 15. Qd2 {[%clk 1:06:41]} 15... Re8 {[%clk 1:04:39]} 16. Rfd1 {[%clk
0:57:48]} 16... Bf8 {[%clk 1:03:37]} 17. c4 {[%clk 0:56:17]} 17... Bd7 {[%clk
0:57:55]} 18. Qe3 {[%clk 0:49:18]} 18... Bc6 {[%clk 0:56:21]} 19. Rd2 {[%clk
0:44:39]} 19... Rb8 {[%clk 0:52:30]} 20. Rad1 {[%clk 0:43:19]} 20... Qc8 {[%clk
0:52:19]} 21. Nh4 {[%clk 0:31:17]} 21... Re6 {[%clk 0:48:45]} 22. Nf5 {[%clk
0:33:10]} 22... g6 {[%clk 0:40:10]} 23. Qg5 {[%clk 0:23:43]} 23... Kh8 {[%clk
0:34:06]} 24. Nfe3 {[%clk 0:22:03]} 24... a5 {[%clk 0:28:10]} 25. c5 {[%clk
0:16:54]} 25... dxc5 {[%clk 0:26:06]} 26. Nc4 {[%clk 0:17:16]} 26... f6 {[%clk
0:26:03]} 27. Qg4 {[%clk 0:14:53]} 27... Bh6 {[%clk 0:22:24]} 28. Rd3 {[%clk
0:13:28]} 28... Bb5 {[%clk 0:13:20]} 29. Rh3 {[%clk 0:12:10]} 29... Bg5 {[%clk
0:13:32]} 30. g3 {[%clk 0:08:02]} 30... Ra6 {[%clk 0:07:32]} 31. Qxc8+ {[%clk
0:06:53]} 31... Rxc8 {[%clk 0:07:59]} 32. f4 {[%clk 0:02:06]} 32... Bd7 {[%clk
0:07:35]} 33. fxg5 {[%clk 0:01:44]} 33... Bxh3 {[%clk 0:08:00]} 34. gxf6 {[%clk
0:01:59]} 34... Be6 {[%clk 0:08:09]} 35. Ndb6 {[%clk 0:00:38]} 35... Rf8 {[%clk
0:08:15]} 36. Nd5 {[%clk 0:00:46]} 36... Bxd5 {[%clk 0:07:37]} 37. exd5 {[%clk
0:01:12]} 37... Raxf6 {[%clk 0:06:18]} 38. Nxa5 {[%clk 0:01:37]} 38... b6 {[%clk
0:04:29]} 39. Nc4 {[%clk 0:01:15]} 39... e4 {[%clk 0:03:36]} 40. d6 {[%clk
0:31:10]} 40... b5 {[%clk 0:-6:-6]} 41. Ne5 {[%clk 0:22:48]} 41... e3 {[%clk
0:31:20]} 42. Kg2 {[%clk 0:21:42]} 42... Rf2+ {[%clk 0:30:15]} 43. Kh3 {[%clk
0:21:47]} 43... Rd2 {[%clk 0:29:48]} 44. Re1 {[%clk 0:21:18]} 44... e2 {[%clk
0:28:46]} 45. d7 {[%clk 0:21:15]} 45... Kg7 {[%clk 0:28:59]} 46. Nc6 {[%clk
0:19:08]} 46... Rxd7 {[%clk 0:28:49]} 47. Rxe2 {[%clk 0:19:34]} 47... Rc7 {[%clk
0:28:31]} 48. Ne7 {[%clk 0:19:20]} 48... Re8 {[%clk 0:28:26]} 49. Nf5+ {[%clk
0:19:44]} 49... Kf8 {[%clk 0:28:43]} 50. Rxe8+ {[%clk 0:20:01]} 50... Kxe8
{[%clk 0:29:09]} 51. Nd6+ {[%clk 0:20:26]} 51... Kd7 {[%clk 0:29:28]} 52. Nxb5
{[%clk 0:20:49]} 52... Rb7 {[%clk 0:29:52]} 53. Nc3 {[%clk 0:21:11]} 53... Rxb3
{[%clk 0:30:03]} 54. Ne4 {[%clk 0:21:29]} 54... Kc6 {[%clk 0:30:21]} 0-1

[Variant "Standard"]
[Site "Europe Echecs"]

[Event "Sunway Sitges Chess Festival"]
[Date "2024.12.21"]
[White "Ilamparthi A R"]
[Black "Lee, Jun Wei"]
[WhiteElo "2391"]
[BlackElo "2238"]
[Round "7.17"]
[Result "1-0"]
[TimeControl "40/5400+30:1800+30"]

1. e4 {[%clk 1:30:58]} 1... c6 {[%clk 1:30:53]} 2. d4 {[%clk 1:30:48]} 2... d5
{[%clk 1:31:08]} 3. e5 {[%clk 1:31:12]} 3... Bf5 {[%clk 1:31:26]} 4. Nf3 {[%clk
1:31:24]} 4... e6 {[%clk 1:31:30]} 5. Be2 {[%clk 1:31:48]} 5... c5 {[%clk
1:31:29]} 6. c3 {[%clk 1:31:33]} 6... Nc6 {[%clk 1:30:59]} 7. O-O {[%clk
1:31:49]} 7... cxd4 {[%clk 1:28:58]} 8. cxd4 {[%clk 1:30:29]} 8... Nge7 {[%clk
1:29:06]} 9. Nc3 {[%clk 1:29:05]} 9... Bg4 {[%clk 1:28:28]} 10. h3 {[%clk
1:18:48]} 10... Bxf3 {[%clk 1:25:04]} 11. Bxf3 {[%clk 1:18:23]} 11... Nf5 {[%clk
1:25:22]} 12. Be3 {[%clk 1:13:08]} 12... Be7 {[%clk 1:20:42]} 13. Bg4 {[%clk
1:01:11]} 13... Nxe3 {[%clk 1:16:47]} 14. fxe3 {[%clk 1:01:32]} 14... O-O {[%clk
1:17:10]} 15. Qd3 {[%clk 0:59:07]} 15... Qb6 {[%clk 1:08:02]} 16. Rf2 {[%clk
0:56:29]} 16... Bh4 {[%clk 0:53:23]} 17. Rf3 {[%clk 0:52:33]} 17... Rad8 {[%clk
0:47:50]} 18. Raf1 {[%clk 0:46:24]} 18... Nb4 {[%clk 0:42:57]} 19. Qd2 {[%clk
0:43:11]} 19... Bg5 {[%clk 0:38:54]} 20. g3 {[%clk 0:29:17]} 20... Qa6 {[%clk
0:30:05]} 21. h4 {[%clk 0:20:24]} 21... Bh6 {[%clk 0:28:58]} 22. Kh2 {[%clk
0:19:46]} 22... Nd3 {[%clk 0:20:04]} 23. a3 {[%clk 0:13:53]} 23... Rc8 {[%clk
0:14:22]} 24. Nxd5 {[%clk 0:07:35]} 24... exd5 {[%clk 0:14:41]} 25. Bxc8 {[%clk
0:08:01]} 25... Rxc8 {[%clk 0:15:07]} 26. Rxf7 {[%clk 0:08:23]} 26... Re8 {[%clk
0:04:05]} 27. Qe2 {[%clk 0:05:41]} 27... g6 {[%clk 0:01:27]} 28. Qf3 {[%clk
0:05:04]} 28... Qb5 {[%clk 0:00:52]} 29. h5 {[%clk 0:04:26]} 29... Qxb2+ {[%clk
0:00:37]} 30. Kh3 {[%clk 0:04:21]} 30... Nxe5 {[%clk 0:00:35]} 31. Qxd5 {[%clk
0:04:00]} 1-0

[Variant "Standard"]
[Site "Europe Echecs"]

[Event "Sunway Sitges Chess Festival"]
[Date "2024.12.21"]
[White "Gormally, Daniel W"]
[Black "Schippke, Manon"]
[WhiteElo "2424"]
[BlackElo "2213"]
[Round "7.18"]
[Result "1/2-1/2"]
[TimeControl "40/5400+30:1800+30"]

1. d4 {[%clk 1:30:56]} 1... d5 {[%clk 1:25:22]} 2. c4 {[%clk 1:31:03]} 2... c6
{[%clk 1:25:47]} 3. Nf3 {[%clk 1:30:52]} 3... Nf6 {[%clk 1:26:10]} 4. Nc3 {[%clk
1:30:51]} 4... e6 {[%clk 1:26:31]} 5. e3 {[%clk 1:30:26]} 5... Nbd7 {[%clk
1:26:47]} 6. Bd3 {[%clk 1:30:29]} 6... dxc4 {[%clk 1:26:43]} 7. Bxc4 {[%clk
1:30:44]} 7... b5 {[%clk 1:27:02]} 8. Bd3 {[%clk 1:30:09]} 8... b4 {[%clk
1:27:10]} 9. Ne4 {[%clk 1:28:27]} 9... Nxe4 {[%clk 1:27:34]} 10. Bxe4 {[%clk
1:28:51]} 10... Bb7 {[%clk 1:28:00]} 11. O-O {[%clk 1:28:06]} 11... Be7 {[%clk
1:28:18]} 12. Bd2 {[%clk 1:19:32]} 12... Nf6 {[%clk 1:20:27]} 13. Bd3 {[%clk
1:17:37]} 13... O-O {[%clk 1:20:23]} 14. Qe2 {[%clk 1:16:50]} 14... c5 {[%clk
1:14:38]} 15. dxc5 {[%clk 1:17:10]} 15... Bxf3 {[%clk 1:11:52]} 16. gxf3 {[%clk
1:17:31]} 16... Bxc5 {[%clk 1:12:17]} 17. Rfc1 {[%clk 1:15:36]} 17... Qd6 {[%clk
1:08:18]} 18. Be1 {[%clk 1:12:47]} 18... Rfd8 {[%clk 1:06:06]} 19. Ba6 {[%clk
1:07:27]} 19... Nd5 {[%clk 0:55:25]} 20. f4 {[%clk 1:03:08]} 20... Rab8 {[%clk
0:53:22]} 21. Bc4 {[%clk 1:02:17]} 21... Nf6 {[%clk 0:49:53]} 22. Qf3 {[%clk
1:00:52]} 22... e5 {[%clk 0:48:10]} 23. fxe5 {[%clk 0:52:49]} 23... Qxe5 {[%clk
0:47:51]} 24. Rc2 {[%clk 0:53:12]} 24... Bd6 {[%clk 0:44:30]} 25. h3 {[%clk
0:53:31]} 25... a5 {[%clk 0:38:40]} 26. Rd1 {[%clk 0:49:16]} 26... Rbc8 {[%clk
0:32:31]} 27. b3 {[%clk 0:44:14]} 27... Rf8 {[%clk 0:16:25]} 28. Kf1 {[%clk
0:39:03]} 28... Kh8 {[%clk 0:16:20]} 29. Rcd2 {[%clk 0:38:11]} 29... Bc5 {[%clk
0:12:20]} 30. Rd3 {[%clk 0:38:24]} 30... Qe4 {[%clk 0:10:49]} 31. Qxe4 {[%clk
0:36:23]} 31... Nxe4 {[%clk 0:11:14]} 32. f3 {[%clk 0:33:28]} 32... Ng5 {[%clk
0:09:15]} 33. Kg2 {[%clk 0:33:25]} 33... f6 {[%clk 0:08:03]} 34. h4 {[%clk
0:30:37]} 34... Nf7 {[%clk 0:08:29]} 35. f4 {[%clk 0:30:27]} 35... f5 {[%clk
0:08:12]} 36. Kf3 {[%clk 0:23:05]} 36... Nh6 {[%clk 0:07:48]} 37. Rd5 {[%clk
0:20:26]} 37... Ng4 {[%clk 0:06:52]} 38. R1d3 {[%clk 0:20:51]} 38... h5 {[%clk
0:04:40]} 39. Bd2 {[%clk 0:19:32]} 39... Kh7 {[%clk 0:04:16]} 40. Bc1 {[%clk
0:49:34]} 40... Kg6 {[%clk 0:33:58]} 41. Bb2 {[%clk 0:36:01]} 41... Rfe8 {[%clk
0:26:29]} 42. Rd7 {[%clk 0:34:52]} 42... Re7 {[%clk 0:26:31]} 43. Rxe7 {[%clk
0:34:13]} 43... Bxe7 {[%clk 0:26:56]} 44. Rd7 {[%clk 0:33:06]} 44... Bf6 {[%clk
0:21:48]} 45. Bd4 {[%clk 0:33:31]} 45... Rd8 {[%clk 0:18:50]} 46. Bf7+ {[%clk
0:31:31]} 46... Kh6 {[%clk 0:19:12]} 47. Be6 {[%clk 0:30:26]} 47... Rxd7 {[%clk
0:17:06]} 48. Bxd7 {[%clk 0:30:51]} 48... g6 {[%clk 0:17:09]} 49. Bb6 {[%clk
0:28:14]} 49... Bxh4 {[%clk 0:17:33]} 50. Bxa5 {[%clk 0:28:40]} 50... Be7 {[%clk
0:17:59]} 51. Bb6 {[%clk 0:27:26]} 51... Nf6 {[%clk 0:16:01]} 1/2-1/2

[Variant "Standard"]
[Site "Europe Echecs"]

[Event "Sunway Sitges Chess Festival"]
[Date "2024.12.21"]
[White "Arfan, Aditya Bagus"]
[Black "Marie, Maxime"]
[WhiteElo "2416"]
[BlackElo "2196"]
[Round "7.19"]
[Result "1-0"]
[TimeControl "40/5400+30:1800+30"]

1. e4 {[%clk 1:29:39]} 1... c6 {[%clk 1:30:44]} 2. d4 {[%clk 1:29:54]} 2... d5
{[%clk 1:31:06]} 3. e5 {[%clk 1:30:19]} 3... Bf5 {[%clk 1:31:11]} 4. h4 {[%clk
1:24:32]} 4... h5 {[%clk 1:30:38]} 5. c4 {[%clk 1:24:25]} 5... e6 {[%clk
1:29:25]} 6. Nc3 {[%clk 1:24:50]} 6... Ne7 {[%clk 1:27:08]} 7. Nge2 {[%clk
1:23:20]} 7... dxc4 {[%clk 1:21:18]} 8. Ng3 {[%clk 1:21:18]} 8... b5 {[%clk
1:15:56]} 9. Bg5 {[%clk 1:15:20]} 9... Qd7 {[%clk 1:11:29]} 10. a4 {[%clk
1:08:28]} 10... Bg6 {[%clk 1:02:27]} 11. Be2 {[%clk 1:02:13]} 11... Nf5 {[%clk
1:00:34]} 12. Nxf5 {[%clk 0:56:01]} 12... Bxf5 {[%clk 1:00:57]} 13. axb5 {[%clk
0:53:57]} 13... cxb5 {[%clk 0:54:50]} 14. O-O {[%clk 0:50:12]} 14... Bb4 {[%clk
0:46:07]} 15. d5 {[%clk 0:38:01]} 15... Bxc3 {[%clk 0:36:36]} 16. dxe6 {[%clk
0:37:43]} 16... Bxe6 {[%clk 0:33:16]} 17. bxc3 {[%clk 0:33:09]} 17... Nc6 {[%clk
0:31:29]} 18. Bf3 {[%clk 0:29:09]} 18... Rc8 {[%clk 0:23:37]} 19. Bxc6 {[%clk
0:26:49]} 19... Qxc6 {[%clk 0:21:17]} 20. Rxa7 {[%clk 0:25:43]} 20... O-O {[%clk
0:20:54]} 21. Qxh5 {[%clk 0:25:50]} 21... b4 {[%clk 0:18:59]} 22. Bf6 {[%clk
0:17:33]} 22... Qe4 {[%clk 0:11:31]} 23. Qg5 {[%clk 0:15:50]} 23... Qg4 {[%clk
0:11:03]} 24. cxb4 {[%clk 0:14:33]} 24... c3 {[%clk 0:10:44]} 25. Qxg4 {[%clk
0:08:42]} 25... Bxg4 {[%clk 0:11:07]} 26. Be7 {[%clk 0:08:54]} 26... Ra8 {[%clk
0:07:10]} 27. Rc7 {[%clk 0:03:16]} 27... Rfc8 {[%clk 0:06:15]} 28. Rxc8+ {[%clk
0:03:40]} 28... Bxc8 {[%clk 0:06:23]} 29. Rc1 {[%clk 0:02:25]} 29... Ra3 {[%clk
0:06:01]} 30. b5 {[%clk 0:02:37]} 30... Rb3 {[%clk 0:06:18]} 31. b6 {[%clk
0:02:37]} 31... Ba6 {[%clk 0:03:25]} 32. Bc5 {[%clk 0:02:53]} 32... Bd3 {[%clk
0:03:01]} 33. f3 {[%clk 0:02:25]} 33... c2 {[%clk 0:02:55]} 34. Kf2 {[%clk
0:02:46]} 34... Rb1 {[%clk 0:02:45]} 35. Be3 {[%clk 0:03:10]} 35... Kf8 {[%clk
0:02:15]} 36. Ke1 {[%clk 0:03:32]} 36... Ke7 {[%clk 0:01:46]} 37. Kd2 {[%clk
0:03:50]} 37... Bh7 {[%clk 0:01:36]} 38. g4 {[%clk 0:02:18]} 38... Ke6 {[%clk
0:01:56]} 39. f4 {[%clk 0:02:37]} 39... Be4 {[%clk 0:02:20]} 40. h5 {[%clk
0:31:19]} 40... Kd5 {[%clk 0:31:52]} 41. Kc3 {[%clk 0:12:59]} 41... Bf3 {[%clk
0:17:49]} 42. Kxc2 {[%clk 0:05:33]} 42... Rxc1+ {[%clk 0:17:03]} 43. Kxc1 {[%clk
0:05:57]} 43... Kc6 {[%clk 0:17:20]} 44. f5 {[%clk 0:05:49]} 44... Bxg4 {[%clk
0:13:21]} 45. f6 {[%clk 0:05:19]} 45... gxf6 {[%clk 0:13:34]} 46. h6 {[%clk
0:05:44]} 46... Bf5 {[%clk 0:13:55]} 47. exf6 {[%clk 0:06:07]} 47... Bg6 {[%clk
0:12:52]} 48. Kd2 {[%clk 0:06:31]} 48... Bh7 {[%clk 0:13:16]} 49. Kc3 {[%clk
0:06:57]} 49... Bb1 {[%clk 0:09:53]} 50. Kb4 {[%clk 0:07:08]} 50... Bd3 {[%clk
0:09:38]} 51. Ka5 {[%clk 0:06:17]} 51... Kb7 {[%clk 0:08:02]} 52. Bf2 {[%clk
0:06:31]} 52... Kb8 {[%clk 0:08:17]} 53. Kb4 {[%clk 0:06:56]} 53... Kb7 {[%clk
0:08:44]} 54. Kc5 {[%clk 0:06:29]} 1-0

[Variant "Standard"]
[Site "Europe Echecs"]

[Event "Sunway Sitges Chess Festival"]
[Date "2024.12.21"]
[White "Grebennikov, Nikolai A."]
[Black "Dudognon, Thibault"]
[WhiteElo "2194"]
[BlackElo "2411"]
[Round "7.20"]
[Result "0-1"]
[TimeControl "40/5400+30:1800+30"]

1. d4 {[%clk 1:30:30]} 1... Nf6 {[%clk 1:27:11]} 2. c4 {[%clk 1:30:54]} 2... g6
{[%clk 1:27:19]} 3. Nc3 {[%clk 1:31:16]} 3... d5 {[%clk 1:27:23]} 4. cxd5 {[%clk
1:31:36]} 4... Nxd5 {[%clk 1:27:46]} 5. e4 {[%clk 1:32:01]} 5... Nxc3 {[%clk
1:28:08]} 6. bxc3 {[%clk 1:32:26]} 6... Bg7 {[%clk 1:28:30]} 7. Qa4+ {[%clk
1:32:50]} 7... Bd7 {[%clk 1:27:47]} 8. Qa3 {[%clk 1:33:09]} 8... O-O {[%clk
1:27:28]} 9. Nf3 {[%clk 1:32:49]} 9... e5 {[%clk 1:25:54]} 10. Bg5 {[%clk
1:31:56]} 10... Qe8 {[%clk 1:25:59]} 11. d5 {[%clk 1:11:22]} 11... f5 {[%clk
1:26:23]} 12. Bd3 {[%clk 1:07:17]} 12... h6 {[%clk 1:26:35]} 13. Qb3 {[%clk
0:58:24]} 13... Ba4 {[%clk 1:16:40]} 14. Qxb7 {[%clk 0:57:17]} 14... Nd7 {[%clk
1:16:57]} 15. Be3 {[%clk 0:56:11]} 15... Nf6 {[%clk 1:00:43]} 16. Nd2 {[%clk
0:52:35]} 16... Qd7 {[%clk 0:50:26]} 17. Bxa7 {[%clk 0:41:28]} 17... c5 {[%clk
0:49:08]} 18. Qxd7 {[%clk 0:34:05]} 18... Nxd7 {[%clk 0:49:23]} 19. Bxc5 {[%clk
0:34:08]} 19... Nxc5 {[%clk 0:49:48]} 20. Ke2 {[%clk 0:33:00]} 20... fxe4 {[%clk
0:46:54]} 21. Nxe4 {[%clk 0:31:22]} 21... Nxe4 {[%clk 0:47:14]} 22. Bxe4 {[%clk
0:31:49]} 22... Bb5+ {[%clk 0:47:36]} 23. Ke3 {[%clk 0:31:01]} 23... Ra3 {[%clk
0:46:31]} 24. Rhb1 {[%clk 0:27:15]} 24... Rxc3+ {[%clk 0:45:16]} 25. Kd2 {[%clk
0:27:38]} 25... Rc5 {[%clk 0:45:43]} 26. f3 {[%clk 0:25:09]} 26... h5 {[%clk
0:42:34]} 27. a4 {[%clk 0:24:55]} 27... Bc4 {[%clk 0:41:31]} 28. a5 {[%clk
0:01:53]} 28... Ra8 {[%clk 0:25:29]} 29. d6 {[%clk 0:17:10]} 29... Bd5 {[%clk
0:16:59]} 30. Rb6 {[%clk 0:12:20]} 30... Bxe4 {[%clk 0:08:56]} 31. fxe4 {[%clk
0:11:40]} 31... Rcxa5 {[%clk 0:08:44]} 32. Rxa5 {[%clk 0:09:47]} 32... Rxa5
{[%clk 0:09:12]} 33. Rb8+ {[%clk 0:09:48]} 33... Kf7 {[%clk 0:09:30]} 34. d7
{[%clk 0:10:02]} 34... Bf6 {[%clk 0:09:50]} 35. g3 {[%clk 0:05:01]} 35... Ra2+
{[%clk 0:04:19]} 36. Kc3 {[%clk 0:04:20]} 36... Rxh2 {[%clk 0:04:06]} 37. d8=Q
{[%clk 0:03:51]} 37... Bxd8 {[%clk 0:04:33]} 38. Rxd8 {[%clk 0:04:17]} 38... Rg2
{[%clk 0:04:08]} 39. Rd3 {[%clk 0:04:20]} 39... Re2 {[%clk 0:04:33]} 40. Kc4
{[%clk 0:02:44]} 40... Ke6 {[%clk 0:33:55]} 41. Rf3 {[%clk 0:31:10]} 41... Rxe4+
{[%clk 0:34:05]} 42. Kd3 {[%clk 0:30:05]} 42... Ra4 {[%clk 0:34:15]} 43. Ke2
{[%clk 0:30:23]} 43... Ra7 {[%clk 0:32:01]} 44. Rb3 {[%clk 0:30:27]} 44... Kf5
{[%clk 0:32:02]} 45. Kf3 {[%clk 0:28:34]} 45... Ra5 {[%clk 0:31:35]} 46. Rc3
{[%clk 0:27:45]} 46... Rd5 {[%clk 0:31:25]} 47. Re3 {[%clk 0:24:37]} 47... Rd3
{[%clk 0:30:30]} 0-1

[Variant "Standard"]
[Site "Europe Echecs"]

[Event "Sunway Sitges Chess Festival"]
[Date "2024.12.21"]
[White "Li, Harry"]
[Black "Xu, Minghui"]
[WhiteElo "2194"]
[BlackElo "2405"]
[Round "7.21"]
[Result "1/2-1/2"]
[TimeControl "40/5400+30:1800+30"]

1. e4 {[%clk 1:30:57]} 1... e5 {[%clk 1:30:50]} 2. Nf3 {[%clk 1:31:22]} 2... Nc6
{[%clk 1:31:13]} 3. Bb5 {[%clk 1:31:46]} 3... a6 {[%clk 1:31:30]} 4. Ba4 {[%clk
1:32:12]} 4... Nf6 {[%clk 1:31:51]} 5. O-O {[%clk 1:32:35]} 5... Be7 {[%clk
1:31:58]} 6. Re1 {[%clk 1:32:46]} 6... b5 {[%clk 1:32:17]} 7. Bb3 {[%clk
1:33:13]} 7... O-O {[%clk 1:31:29]} 8. a4 {[%clk 1:33:19]} 8... Bb7 {[%clk
1:31:40]} 9. d3 {[%clk 1:33:38]} 9... d6 {[%clk 1:31:47]} 10. h3 {[%clk
1:33:33]} 10... Na5 {[%clk 1:26:13]} 11. Ba2 {[%clk 1:33:54]} 11... c5 {[%clk
1:26:33]} 12. Nbd2 {[%clk 1:34:07]} 12... Rc8 {[%clk 1:23:51]} 13. Nf1 {[%clk
1:28:22]} 13... Re8 {[%clk 1:23:50]} 14. Ng3 {[%clk 1:20:46]} 14... b4 {[%clk
1:18:20]} 15. c3 {[%clk 1:15:34]} 15... bxc3 {[%clk 1:14:10]} 16. bxc3 {[%clk
1:18:32]} 16... c4 {[%clk 1:14:21]} 17. Nf5 {[%clk 1:07:05]} 17... Bf8 {[%clk
1:04:56]} 18. Bg5 {[%clk 0:56:20]} 18... h6 {[%clk 1:08:59]} 19. Bh4 {[%clk
0:49:19]} 19... g6 {[%clk 0:56:28]} 20. Ne3 {[%clk 0:52:44]} 20... Bg7 {[%clk
0:42:09]} 21. Bxf6 {[%clk 0:48:00]} 21... Bxf6 {[%clk 0:41:13]} 22. Nxc4 {[%clk
0:47:32]} 22... Nxc4 {[%clk 0:40:12]} 23. Bxc4 {[%clk 0:47:56]} 23... d5 {[%clk
0:40:26]} 24. Ba2 {[%clk 0:33:41]} 24... dxe4 {[%clk 0:34:40]} 25. Qb3 {[%clk
0:24:16]} 25... Re7 {[%clk 0:27:26]} 26. dxe4 {[%clk 0:30:46]} 26... Rec7 {[%clk
0:27:49]} 27. Rad1 {[%clk 0:27:19]} 27... Qe8 {[%clk 0:20:23]} 28. Qb6 {[%clk
0:18:29]} 28... Kg7 {[%clk 0:19:38]} 29. a5 {[%clk 0:15:41]} 29... Qa4 {[%clk
0:12:41]} 30. Bd5 {[%clk 0:13:00]} 30... Bxd5 {[%clk 0:12:24]} 31. Rxd5 {[%clk
0:13:02]} 31... Rxc3 {[%clk 0:05:36]} 32. Qxa6 {[%clk 0:11:41]} 32... Rc1 {[%clk
0:05:30]} 33. Qf1 {[%clk 0:09:05]} 33... Rxe1 {[%clk 0:03:35]} 34. Qxe1 {[%clk
0:09:32]} 34... Rc4 {[%clk 0:03:45]} 35. a6 {[%clk 0:08:02]} 35... Rxe4 {[%clk
0:02:58]} 36. Qa5 {[%clk 0:08:24]} 36... Qc6 {[%clk 0:01:59]} 37. a7 {[%clk
0:02:54]} 37... Ra4 {[%clk 0:01:51]} 38. a8=Q {[%clk 0:02:02]} 38... Qxa8 {[%clk
0:02:07]} 39. Qxa8 {[%clk 0:02:26]} 39... Rxa8 {[%clk 0:02:34]} 40. Nxe5 {[%clk
0:32:53]} 1/2-1/2

[Variant "Standard"]
[Site "Europe Echecs"]